Cogmind - Beta 11.1 @@@ ROGUE MODE // 2022.06.07 @ 16:56:35 Player: lepoulpe303 Result: Destroyed by S-27 Virus with Autogun Performance ------------- Evolutions (3) 1500 Regions Visited (5) 1000 Robots Destroyed (47) 235 Value Destroyed (1616) 1616 Prototype IDs (1) 20 Alien Tech Used (0) 0 Bonus (0) 0 TOTAL SCORE: 4371 Bonus ------- None Cogmind --------- Core Integrity 0/700 Matter 300/300 Energy 86/100 System Corruption 1% Temperature Cool (0) Movement Walking (120) Location -7/Lower Caves Parts ------- > --- POWER (1) -------- (None) > --- PROPULSION (4) --- Aluminum Leg > --- UTILITY (4) ------ Advanced Targeting Computer > --- WEAPON (4) ------- Thermic Laser > --- INVENTORY (5) ---- Light Ion Engine Wheel Heavy Particle Cannon Battle Rifle Remote Datajack Peak State ------------ > --- POWER ------------ Deuterium Engine > --- PROPULSION ------- Aluminum Leg Aluminum Leg Carbon-fiber Leg Improved Titanium Leg > --- UTILITY ---------- Small Storage Unit Visual Processing Unit Advanced Targeting Computer Medium Armor Plating > --- WEAPON ----------- Improved Grenade Launcher Remote Datajack Greatsword > --- INVENTORY -------- Improved Ion Engine Improved Ion Engine Lightning Gun Heavy Particle Gun Heavy Particle Cannon Coil Gun Assault Cannon [Rating: 37] Favorites ----------- Power Ion Engine Engine Ion Engine Power Core Light Nuclear Core Propulsion Aluminum Leg Leg Aluminum Leg Wheel Wheel Utility Small Storage Unit Device Improved Heat Sink Storage Small Storage Unit Processor Visual Processing Unit Protection Light Armor Plating Weapon Light Assault Rifle Energy Gun Medium Laser Energy Cannon Heavy Particle Cannon Ballistic Gun Light Assault Rifle Ballistic Cannon Assault Cannon Launcher Improved Grenade Launcher Special Weapon Remote Datajack Impact Weapon Heavy Hammer Slashing Weapon Greatsword Build | -11 -10 -9 -8 -7 -7 ------- Run | Scr Mat Mat Mat Fac Low Slots Evolved 6 | . . 2 2 2 . Power . | . . . . . . Propulsion 2 | . . . . 2 . Utility 2 | . . 1 1 . . Weapon 2 | . . 1 1 . . Parts Attached 56 | 7 3 8 14 4 20 Power 6 | 1 1 . 2 . 2 Engine 5 | 1 1 . 1 . 2 Core 1 | . . . 1 . . Reactor . | . . . . . . Propulsion 14 | 2 . 2 3 2 5 Treads . | . . . . . . Leg 13 | 2 . 2 3 2 4 Wheel 1 | . . . . . 1 Hover . | . . . . . . Flight . | . . . . . . Utility 9 | 1 1 2 3 1 1 Device 4 | . . 1 2 . 1 Storage 1 | 1 . . . . . Processor 2 | . 1 . 1 . . Hackware . | . . . . . . Protection 2 | . . 1 . 1 . Artifact . | . . . . . . Weapon 27 | 3 1 4 6 1 12 Energy Gun 10 | 2 . 2 2 . 4 Energy Cannon 3 | . . . 1 . 2 Ballistic Gun 5 | 1 . 1 1 . 2 Ballistic Cannon 2 | . . . 1 . 1 Launcher 3 | . 1 . 1 . 1 Special Weapon 2 | . . . . . 2 Impact Weapon 1 | . . 1 . . . Slashing Weapon 1 | . . . . 1 . Piercing Weapon . | . . . . . . Special Melee Weapon . | . . . . . . Unidentified Prototypes 1 | . . . . . 1 Parts Lost 38 | . 1 3 11 . 23 Power 6 | . 1 . 2 . 3 Propulsion 11 | . . 1 3 . 7 Utility 5 | . . . 1 . 4 Weapon 16 | . . 2 5 . 9 Highest Loss Streak 10 | . 1 1 5 . 10 To Critical Strikes . | . . . . . . Average Slot Usage (%) 76 | . 89 92 92 86 57 Engine 6 | . 10 11 3 7 4 Leg 19 | . 28 20 16 25 17 Device 1 | . . 1 5 2 . Storage 7 | . 14 11 9 7 3 Processor 11 | . 8 11 17 15 10 Protection 2 | . . 4 3 4 1 Energy Gun 6 | . 8 11 7 . 4 Energy Cannon 1 | . . . 1 . 2 Ballistic Gun 8 | . 14 17 11 . 1 Ballistic Cannon 1 | . . . 1 7 2 Launcher 2 | . 5 2 1 7 1 Impact Weapon 2 | . . . 9 . . Slashing Weapon 1 | . . . . 5 2 Naked Turns . | . . . . . . Heaviest Build 38 | 14 14 21 36 38 38 Greatest Support 55 | 20 20 20 25 55 55 Greatest Overweight (x) 3 | . . 1 3 1 3 Average Overweight (x) . | . . . 1 . . Largest Inventory Capacity 8 | 8 8 8 8 8 8 Average Capacity 7 | 6 8 8 8 8 6 Most Carried 8 | 5 7 8 8 8 8 Average Carried 5 | 1 5 5 7 6 4 Final Capacity 8 | 8 8 8 8 8 5 Final Carried 8 | 2 5 7 7 8 5 Class Distribution -------------------- 46% | Mutant 20% | Scavenger-Mutant 18% | Scavenger-Gunner 7% | Tank Dominant Class ---------------- Mutant | -10/Materials Tank | -9/Materials Scavenger-Gunner | -8/Materials Scavenger-Mutant | -7/Factory Mutant | -7/Lower Caves Resources | -11 -10 -9 -8 -7 -7 ----------- Run | Scr Mat Mat Mat Fac Low Matter Collected 1186 | 255 216 197 274 . 244 Remotely . | . . . . . . Salvage Created 1844 | . 249 269 738 . 588 Parts 100 | . 10 14 46 . 30 Haulers Intercepted . | . . . . . . Recyclers Shooed 1 | . . . . . 1 Parts Field Recycled . | . . . . . . Retrieved Matter . | . . . . . . Parts Self-Destructed 24 | . . . . . 24 Prevented . | . . . . . . Kills | -11 -10 -9 -8 -7 -7 ------- Run | Scr Mat Mat Mat Fac Low Combat Hostiles Destroyed 39 | . 5 4 15 . 15 Melee 7 | . . . . . 7 Guns 23 | . 2 4 13 . 4 AOE 7 | . 3 . . . 4 Classes Destroyed 9 | . 2 2 3 . 2 Worker 2 | . . 1 1 . . Recycler 2 | . . . 2 . . Watcher 4 | . 2 2 . . . Swarmer 10 | . . . 5 . 5 Grunt 20 | . 5 2 6 . 7 Brawler 1 | . . . . . 1 Sentry 6 | . . 2 3 . 1 Hunter 1 | . . . 1 . . Programmer 1 | . . . . . 1 Best Kill Streak 7 | . 2 2 5 . 7 Combat Bots Only 7 | . 2 2 3 . 7 Max Kills in Single Turn 2 | . 1 2 1 . 2 Gunslinging . | . . . . . . Exploded 2 | . 1 . . . 2 Melee 1 | . . . . . 1 Uniques/NPCs Destroyed . | . . . . . . Combat | -11 -10 -9 -8 -7 -7 -------- Run | Scr Mat Mat Mat Fac Low Damage Taken 4967 | . 388 324 1315 . 2940 Core 1189 | . 64 59 363 . 703 Absorbed by Shields . | . . . . . . Regen/Repaired (Parts) 83 | . . 83 . . . Core Remaining (%) 73 | 100 74 85 34 . . Volleys Fired 129 | . 26 25 49 . 29 Largest 4 | . 2 3 3 . 4 Hottest 241 | . 70 120 138 . 241 Shots Fired 254 | . 44 54 106 . 50 Gun 236 | . 39 54 106 . 37 Cannon 10 | . . . . . 10 Launcher 8 | . 5 . . . 3 Special . | . . . . . . Kinetic 146 | . 26 32 70 . 18 Thermal 93 | . 13 22 36 . 22 Explosive 8 | . 5 . . . 3 Electromagnetic 7 | . . . . . 7 Robot Hit Streak 18 | . 7 6 18 . 6 Robot Miss Streak 4 | . 3 3 3 . 4 Penetration Max . | . . . . . . Secondary Targets 3 | . . 1 2 . . Max Gunslinging Chain 1 | . . 1 1 . . Shots Hit Robots 186 | . 28 32 89 . 37 Core Hits 91 | . 14 13 31 . 33 Critical Kills 1 | . . . 1 . . Critical Parts Destroyed 4 | . 1 . 3 . . Critical Strikes 11 | . 2 1 5 . 3 Burn 4 | . 1 1 1 . 1 Destroy 2 | . 1 . 1 . . Blast 1 | . . . . . 1 Smash 3 | . . . 3 . . Sever 1 | . . . . . 1 Melee Attacks 26 | . . 1 9 . 16 Impact 10 | . . 1 9 . . Slashing 16 | . . . . . 16 Piercing . | . . . . . . Sneak Attacks 1 | . . . 1 . . Combat Hostiles . | . . . . . . Follow-up Attacks . | . . . . . . Damage Inflicted 3700 | . 492 381 1357 . 1470 Guns 2114 | . 238 356 1118 . 402 Cannons 76 | . . . . . 76 Explosions 636 | . 254 . . . 382 Melee 773 | . . 25 239 . 509 Ramming 101 | . . . . . 101 Kinetic 1254 | . 162 229 630 . 233 Thermal 942 | . 76 127 488 . 251 Explosive 550 | . 254 . . . 296 Electromagnetic 80 | . . . . . 80 Impact 264 | . . 25 239 . . Slashing 509 | . . . . . 509 Piercing . | . . . . . . Highest Corruption 1 | . . . . . 1 Average Corruption 1 | . . . . . 1 Corruption Purged . | . . . . . . Corruption Blocked . | . . . . . . Effects 4 | . . . . . 4 Message Errors 2 | . . . . . 2 Matter Fused 1 | . . . . . 1 Alerts 1 | . . . . . 1 Overload Shots . | . . . . . . Overflow Damage 153 | . . . 144 . 9 Projectiles . | . . . . . . Explosions . | . . . . . . Melee 153 | . . . 144 . 9 Knockbacks 1 | . . . . . 1 Impact . | . . . . . . Kinetic 1 | . . . . . 1 Secondary . | . . . . . . Self-Inflicted Damage 118 | . 8 . . . 110 Shots 4 | . 1 . . . 3 Rammed 23 | . . . . . 23 Targets Rammed 50 | . . . . . 50 Kicked 27 | . . . . . 27 Crushed . | . . . . . . Highest Temperature 434 | . 106 137 141 . 434 Average Temperature 57 | . 38 41 43 . 94 Received Heat Transfer 1953 | . 231 87 450 . 1185 Effects 1 | . . . . . 1 Damage (minor) 1 | . . . . . 1 Siege Activations . | . . . . . . Robots Corrupted . | . . . . . . Combat Hostiles . | . . . . . . Parts Fried 1 | . . . 1 . . Impact Corruptions 6 | . . . 5 . 1 Robots Melted . | . . . . . . Combat Hostiles . | . . . . . . Parts Melted 1 | . . 1 . . . Heat Transferred 2646 | . 296 444 1258 . 648 Parts Sabotaged . | . . . . . . Parts Stolen . | . . . . . . Parts Stripped . | . . . . . . Power Chain Reactions 1 | . . . . . 1 Missiles Intercepted . | . . . . . . Alert | -11 -10 -9 -8 -7 -7 ------- Run | Scr Mat Mat Mat Fac Low Peak Influence 250 | . 250 169 217 2 . Initial 49 | . . 49 11 2 . Average 65 | . 62 63 79 2 . Maximum Alert Level 1 | . 1 . 1 . . Low Security (%) 98 | 100 94 100 97 100 . Level 1 1 | . 5 . 2 . . Level 2 . | . . . . . . Level 3 . | . . . . . . Level 4 . | . . . . . . Level 5 . | . . . . . . High Security . | . . . . . . Max Security . | . . . . . . Squads Dispatched 6 | . . . 6 . . Investigation . | . . . . . . Extermination . | . . . . . . Reinforcement 3 | . . . 3 . . Assault . | . . . . . . Garrison 3 | . . . 3 . . Intercept . | . . . . . . Searches Triggered . | . . . . . . Construction Impeded . | . . . . . . Haulers Reinforced . | . . . . . . Active Scanning Responses . | . . . . . . Cargo Convoy Interrupts . | . . . . . . Stealth | -11 -10 -9 -8 -7 -7 --------- Run | Scr Mat Mat Mat Fac Low Distress Signals 3 | . 2 . 1 . . Communications Jammed . | . . . . . . Distress Signals . | . . . . . . Times Spotted 72 | . 13 12 23 . 24 Peak Tracking Total 5 | . 3 2 4 . 5 Tactical Retreats 8 | . 4 . . . 4 Traps | -11 -10 -9 -8 -7 -7 ------- Run | Scr Mat Mat Mat Fac Low Traps Triggered . | . . . . . . Indirectly . | . . . . . . Trap Hack Attempts . | . . . . . . Triggered . | . . . . . . Disarmed . | . . . . . . Reprogrammed . | . . . . . . Reused . | . . . . . . Traps Extracted . | . . . . . . Installed . | . . . . . . Triggered . | . . . . . . Machines | -11 -10 -9 -8 -7 -7 ---------- Run | Scr Mat Mat Mat Fac Low Machines Disabled 1 | . 1 . . . . Max in Single Turn 1 | . 1 . . . . Machines Sabotaged . | . . . . . . Garrisons Compromised . | . . . . . . Overloaded Fab Kills . | . . . . . . Hacking | -11 -10 -9 -8 -7 -7 --------- Run | Scr Mat Mat Mat Fac Low Machines Accessed 11 | . 2 5 2 . 2 Terminals 4 | . 1 2 . . 1 Fabricators . | . . . . . . Repair Stations 1 | . . 1 . . . Recycling Units 1 | . 1 . . . . Scanalyzers 4 | . . 2 2 . . Garrison Access . | . . . . . . Total Hacks 20 | . 3 9 6 . 2 Successful 16 | . 1 8 5 . 2 Failed 4 | . 2 1 1 . . Catastrophic . | . . . . . . Database Lockouts . | . . . . . . Manual . | . . . . . . Terminals 5 | . 2 2 . . 1 Fabricators . | . . . . . . Repair Stations 2 | . . 2 . . . Recycling Units 1 | . 1 . . . . Scanalyzers 11 | . . 5 6 . . Garrison Access . | . . . . . . Terminal Hacks 3 | . . 1 . . 2 Record 1 | . . . . . 1 Open Door 1 | . . . . . 1 Locate Traps 1 | . . 1 . . . Fabricator Hacks . | . . . . . . Repair Station Hacks 2 | . . 2 . . . Scan Component 1 | . . 1 . . . Repair 1 | . . 1 . . . Recycling Unit Hacks 1 | . 1 . . . . Recycle Component 1 | . 1 . . . . Scanalyzer 10 | . . 5 5 . . Insert Component 5 | . . 2 3 . . Analyze 5 | . . 3 2 . . Garrison Access Hacks . | . . . . . . Unauthorized Hacks . | . . . . . . Terminals . | . . . . . . Fabricators . | . . . . . . Repair Stations . | . . . . . . Recycling Units . | . . . . . . Scanalyzers . | . . . . . . Garrison Access . | . . . . . . Data Cores Recovered . | . . . . . . Used . | . . . . . . Hacking Detections 6 | . 2 2 1 . 1 Full Trace Events . | . . . . . . Feedback Events . | . . . . . . Feedback Blocked . | . . . . . . Robot Schematics Acquired . | . . . . . . Robots Built . | . . . . . . Authchips . | . . . . . . Time . | . . . . . . Total Robot Build Rating . | . . . . . . Part Schematics Acquired 3 | . . 2 1 . . Parts Built . | . . . . . . Authchips . | . . . . . . Time . | . . . . . . Total Part Build Rating . | . . . . . . Parts Repaired 1 | . . 1 . . . Time 26 | . . 26 . . . Parts Recycled 1 | . 1 . . . . Recycled Matter . | . . . . . . Retrieved Matter . | . . . . . . Retrieved Components . | . . . . . . Parts Scanalyzed 4 | . . 2 2 . . Part Schematics Acquired 3 | . . 2 1 . . Parts Damaged . | . . . . . . Bothacking | -11 -10 -9 -8 -7 -7 ------------ Run | Scr Mat Mat Mat Fac Low Used RIF Installer . | . . . . . . Robots Hacked . | . . . . . . Non-combat . | . . . . . . Combat . | . . . . . . Robot Hacks Applied . | . . . . . . Relay Couplers Released . | . . . . . . Fabnet Peak Effective % . | . . . . . . Robots Rewired . | . . . . . . Allies Hacked . | . . . . . . Hacks Repelled . | . . . . . . Allies | -11 -10 -9 -8 -7 -7 -------- Run | Scr Mat Mat Mat Fac Low Total Allies . | . . . . . . Largest Group . | . . . . . . Highest-Rated Group . | . . . . . . Highest-Rated Ally . | . . . . . . Total Orders . | . . . . . . Ally Attacks . | . . . . . . Total Damage . | . . . . . . Kills . | . . . . . . Allies Corrupted . | . . . . . . Allies Melted . | . . . . . . Intel | -11 -10 -9 -8 -7 -7 ------- Run | Scr Mat Mat Mat Fac Low Robot Analysis Total . | . . . . . . Derelict Logs Recovered . | . . . . . . Drone Launches . | . . . . . . Drone Recoveries . | . . . . . . Exploration | -11 -10 -9 -8 -7 -7 ------------- Run | Scr Mat Mat Mat Fac Low Turns Passed 4114 | 56 520 735 918 99 1786 Spaces Moved 2546 | 40 360 474 380 62 1230 Core 209 | 10 . . 14 . 185 Treads . | . . . . . . Legs 2337 | 30 360 474 366 62 1045 Wheels . | . . . . . . Hover . | . . . . . . Flight . | . . . . . . Fastest Speed 50 | 50 120 120 120 122 50 Average Speed 132 | 102 120 128 186 138 122 Slowest Speed 260 | 120 120 190 260 190 260 Overloaded Moves . | . . . . . . Propulsion Burnouts . | . . . . . . Robots Hopped . | . . . . . . Cave-ins Triggered . | . . . . . . Exploration Rate (%) 36 | 4 63 36 39 1 73 Regions Visited 5 Branch Regions 1 Pre-discovered Areas . | . . . . . . Known Exits Taken . | . . . . . . Unknown Exits Taken 5 | 1 1 1 1 1 . Scrap Searched 1 | . . . . . 1 Spaces Dug . | . . . . . . Terrain Destroyed 53 | . 20 . . . 33 Melee . | . . . . . . Projectile 2 | . . . . . 2 AOE 51 | . 20 . . . 31 Terrain Rammed . | . . . . . . Walls Destroyed . | . . . . . . Machines Disabled . | . . . . . . Actions | -11 -10 -9 -8 -7 -7 --------- Run | Scr Mat Mat Mat Fac Low Total 3028 | 55 409 556 497 77 1434 Wait 127 | . 14 38 18 . 57 Move 2541 | 39 359 473 379 61 1230 Hop . | . . . . . . Pick Up 66 | 8 6 9 20 7 16 Fast Attach . | . . . . . . Attach 56 | 7 3 8 14 4 20 Detach 9 | 1 1 1 1 . 5 Swap . | . . . . . . Drop 18 | . . 1 7 5 5 Fire 129 | . 26 25 49 . 29 Melee 26 | . . 1 9 . 16 Ram 23 | . . . . . 23 Kick 27 | . . . . . 27 Crush . | . . . . . . Escape Stasis . | . . . . . . Rewire 6 | . . . . . 6 Trap . | . . . . . . Miscellaneous . | . . . . . . Route ------- -11/Scrapyard -10/Materials (discovered 3 exits: *Mat x2 / [*Min]) -9/Materials -8/Materials -7/Factory -7/Lower Caves History --------- Turn | Location | Event 5 | -11/Scrapyard | Discovered new exit (range 16) 57 | -11/Scrapyard | Entered Materials 165 | -10/Materials | Discovered new exit (range 7) 268 | -10/Materials | Discovered new exit (range 13) 314 | -10/Materials | Build established: Mutant 426 | -10/Materials | Discovered new exit (range 17) 577 | -10/Materials | Entered another Materials area 577 | -9/Materials | Evolved 2 slots: Utility x1, Weapon x1 613 | -9/Materials | Repaired Aluminum Leg? 1288 | -9/Materials | Build established: Tank 1291 | -9/Materials | Discovered new exit (range 9) 1312 | -9/Materials | Entered another Materials area 1312 | -8/Materials | Evolved 2 slots: Utility x1, Weapon x1 1565 | -8/Materials | Lost 3 parts (1p1n1w) 1870 | -8/Materials | Garrison activated, responded to threat 1935 | -8/Materials | Build established: Scavenger-Gunner 2030 | -8/Materials | Core integrity fell below 50% 2055 | -8/Materials | Lost 5 parts (1p2n2w) 2221 | -8/Materials | Discovered new exit (range 5) 2230 | -8/Materials | Entered Factory 2230 | -7/Factory | Evolved 2 slots: Propulsion x2 2302 | -7/Factory | Discovered new exit (range 17) 2329 | -7/Factory | Entered Lower Caves 2540 | -7/Lower Caves | Build established: Scavenger-Mutant 2654 | -7/Lower Caves | Attracted the attention of an 0b10 base 2725 | -7/Lower Caves | Lost 4 parts (2n1u1w) 2739 | -7/Lower Caves | Destroyed 7 combat bots 2866 | -7/Lower Caves | Learned Armory security intel 2974 | -7/Lower Caves | Build established: Mutant 3181 | -7/Lower Caves | Core integrity fell below 50% 3215 | -7/Lower Caves | Lost 10 parts (2p3n2u3w) 3694 | -7/Lower Caves | Attracted the attention of an 0b10 checkpoint 3701 | -7/Lower Caves | Core integrity fell below 20% 3749 | -7/Lower Caves | Lost 7 parts (1p2n1u3w) 4115 | -7/Lower Caves | Destroyed by S-27 Virus with Autogun Last Messages --------------- 03718_ Aluminum Leg destroyed. 03719_ Y-54 Guardian destroyed. 03732_ Corrupted Imp. Heat Sink fries itself beyond repair. 03732_ Flak Gun fries itself beyond repair. 03747_ Acquired 46 matter. 04061_ Attempting to rewire MP-WB7(k). 04061_ MP-WB7(k) is broken beyond repair. 04064_ Attempting to rewire S4-QDA(k). 04064_ S4-QDA(k) is broken beyond repair. 04065_ Attempting to rewire S4-QDA(k). 04065_ S4-QDA(k) is broken beyond repair. 04066_ Attempting to rewire S4-QDA(k). 04066_ S4-QDA(k) is broken beyond repair. 04067_ Attempting to rewire S4-QDA(k). 04067_ S4-QDA(k) is broken beyond repair. 04068_ Attempting to rewire S4-QDA(k). 04068_ S4-QDA(k) is broken beyond repair. 04103_ 0Q>LKQRKKNEH6D:FXQ5Z0 KLFATWR5TB 04113_ Kicked S-27 Virus. 04115_ Kicked S-27 Virus out of the way. Map ----- +----------------------------------------------------+ | ??????????????????????????# ## #??### | | ??????????????????????????#### ## #????## | | ?????????????????????????????### ## #?????#% | | ???????????????????????????????## ## ###??## | | ????????????????????????????????# #### #??# %% | | ????????????????????????????????###??## #?## | | ???????????????????????????##???###### #### | | ??????????????????????????## #### ##?# | | ??????????????????????????# # # ##??## | | ??????????????????????????# # # #????#### | | ??????????????????????????# # # #?####??# | | ??????????????????????????## ### ### ##?# | | ???????????????????????????##??## #### ## ### | | ?????????????? ????????????????# #### ### | | ?????????????? ???????????????## ##### ## ## % | | ??????????????? ???????????????# # % | | ???????????????? ????????####### % | | ?????????????????# ?????## ###### # ##### | | ????????????????## ???## #?## ##??## | | ????????????????? #### ### # #??## | | ?????????????? ? ## ##??# | | ??????????????? ## # #??## ## | | ???????????????? "" " " ## #? #??# ## | | ???????????????????# """ s " ### ##?? #?# ## | | ???????????????????## ""s"" ### # ##?????? ## | | ????????????????????# "s@%s # #??????###### | | ????????????????????# """" ###???????????# | | ????????????????????# """"" ## ##?????????????## | | ????????????????????# "" ## #???????????????# | | ????????????????????# ## #???????????????? | | ????????????????????### ##### ???????????????? | | ??????????????????????## ???# #??????????????? | | ???????????????????????# ???#####??????????????? | | ???????????????????????## ??????????????????????? | | ????????????????????????? ??????????????????????? | | ?????????????????????????????????????????????????? | | ?????????????????????????????????????????????????? | | ?????????????????????????????????????????????????? | | ?????????????????????????????????????????????????? | | ?????????????????????????????????????????????????? | | ?????????????????????????????????????????????????? | | ?????????????????????????????????????????????????? | | ?????????????????????????????????????????????????? | | ?????????????????????????????????????????????????? | | ?????????????????????????????????????????????????? | | ?????????????????????????????????????????????????? | | ?????????????????????????????????????????????????? | | ?????????????????????????????????????????????????? | | ?????????????????????????????????????????????????? | | ?????????????????????????????????????????????????? | +----------------------------------------------------+ Best States ------------- Heat Dissipation 48 Energy Generation 14 Energy Capacity 275 Matter Stores 300 Matter Capacity 300 Sight Range 18 Terrain Scan Density 10 Armor Coverage 225 Evasion (%) 55 Targeting Accuracy 8 Item Schematics ----------------- Hcp. Matter Pod | -9/Materials | Scanalyzed Lgt. Nuclear Core | -9/Materials | Scanalyzed Imp. Ion Engine | -8/Materials | Scanalyzed Robot Schematics ------------------ None Fabricated ------------ Nothing Alien Tech Used ----------------- None Achievements -------------- Fist Fight Challenges ------------ None Game ------ Seed ArmageddonSpreadDoomcannon Manual? 0 Play Time 00:50:27 Cumulative 10.8 hours Start 2022.06.07 @ 15:07:43 End 2022.06.07 @ 16:56:35 Sessions 1 Manual Loads 0 Difficulty Rogue Special Mode None Game No. 18 Rogue 17 Adventurer 0 Explorer 1 Win Type - Total 0 Types 0/0/0/0/0/0/0/0/0 Lore% 3 Gallery% 14 Achievement% 10 Wizard Run 0 Options --------- ASCII 0 Keyboard 0 Movement Numpad Keybinds 0 Fullscreen 1 Font 36/Terminus Map View 76x50 Tactical HUD 1 Map Filters NONE Filters NONE Steam 1 RUN: e10857a3-9c7c-4d5f-8bdf-f8413ace2353